bitfinex/quotes_ETHUSD_20250404
["timestamp","ask_amount","ask_price","bid_price","bid_amount"]
[1743772187966,5.59701,1786.7,1786.3,5.59802]
[1743772188246,5.59701,1786.7,1786.4,5.59783]
[1743772188609,3.7868,1786.8,1786.2,5.59837]
[1743772188808,11.19537,1786.5,1786.1,6.16315816]
[1743772189318,5.59787,1786.4,1786.1,0.56440816]
[1743772189506,5.59787,1786.4,1786.1,5.64877]
[1743772189707,5.59787,1786.4,1786.1,0.05]
[1743772190020,5.59787,1786.4,1786.1,5.64867]
[1743772190217,5.59787,1786.4,1786.1,0.05]
[1743772190746,5.59788,1786.4,1786.1,5.64855]
[1743772191117,11.19531,1786.5,1786.1,5.64855]
[1743772191508,5.59758,1786.5,1786.1,0.05]
[1743772191747,11.196,1786.4,1786.1,0.05]
[1743772191922,5.59821,1786.3,1786.1,0.05]
[1743772192138,5.59847,1786.2,1786.1,0.05]
[1743772192463,5.59821,1786.3,1786.1,0.05]
[1743772192818,5.59847,1786.2,1786.1,0.05]
[1743772193149,12.778128,1786.2,1786.1,0.05]
[1743772193351,20.83902999,1786.2,1786.1,0.05]
[1743772193871,5.59978,1785.8,1785.2,11.20314]
[1743772194073,5.59978,1785.8,1785.3,11.20247]
[1743772194074,6.763,1785.8,1785.3,11.20247]
[1743772194250,6.763,1785.8,1785.3,5.60118]
[1743772194446,0.6763,1785.7,1785.3,5.60118]
[1743772194634,0.6763,1785.7,1785.2,5.6016]
[1743772194835,1.4459,1785.7,1785.2,5.60146]
[1743772195050,1.4459,1785.7,1785.3,5.60128]
[1743772195274,1.4459,1785.7,1785.4,5.60093]
[1743772195575,0.7696,1785.7,1785.4,5.60081]
[1743772195874,0.7696,1785.7,1785.4,11.20165]
[1743772196074,0.7696,1785.7,1785.5,5.60061]
[1743772196576,0.7696,1785.7,1785.4,5.60081]
[1743772196757,1.56418907,1785.7,1785.4,5.60081]
[1743772196950,1.56418907,1785.7,1785.4,11.20169]
[1743772197151,1.56418907,1785.7,1785.3,5.60126]
[1743772197379,1.56418907,1785.7,1785.4,5.6008]
[1743772197546,1.56418907,1785.7,1785.5,5.60067]
[1743772199095,6.762,1785.9,1785.6,5.60007]
[1743772199294,6.762,1785.9,1785.7,11.19982]
[1743772199447,6.762,1785.9,1785.7,5.5999]
[1743772199649,0.8267,1786.0,1785.5,5.6006]
[1743772199847,0.8267,1786.0,1785.8,5.59948]
[1743772200046,0.8267,1786.0,1785.8,11.19904]
[1743772200284,1.20758967,1786.5,1785.8,1.119904]
[1743772200446,5.59754,1786.5,1786.1,5.59856]
[1743772200655,11.19529,1786.5,1786.0,5.59905]
[1743772200849,11.19537,1786.5,1786.0,11.19784]
[1743772201049,5.59787,1786.4,1786.0,11.19784]
[1743772201254,6.82049,1786.6,1786.5,5.59753]
[1743772201453,5.59638,1786.9,1786.4,5.59784]
[1743772201454,11.65676,1786.8,1786.4,5.59784]
[1743772201679,8.59701,1786.7,1786.3,5.59806]
[1743772202049,3.0,1786.7,1786.1,5.59875]
[1743772202250,0.7925,1786.6,1785.4,12.3618]
[1743772202591,0.7925,1786.6,1785.8,11.19931]
[1743772202592,6.39106,1786.2,1785.8,11.19931]
[1743772202891,6.39106,1786.2,1785.8,5.59959]
[1743772203065,0.7925,1786.2,1785.9,5.59931]
[1743772203264,8.59785,1786.4,1786.1,5.59879]
[1743772203575,8.59785,1786.4,1786.0,5.59898]
[1743772203576,3.831,1786.4,1785.8,5.59973]
[1743772203787,3.831,1786.4,1786.1,5.59865]
[1743772203991,9.42887,1786.4,1786.1,5.59865]
[1743772204187,3.831,1786.4,1786.1,5.59865]
[1743772204498,3.831,1786.4,1786.0,5.59904]
[1743772204665,11.19664,1786.3,1785.9,5.5994]
[1743772204865,0.3831,1786.3,1786.0,5.5988]
[1743772205277,6.05999,1786.5,1786.2,5.59821]
[1743772205477,6.05999,1786.5,1786.3,5.598]
[1743772205713,6.05999,1786.5,1786.2,5.59821]
[1743772205881,6.05999,1786.5,1786.2,5.59845]
[1743772206201,6.05999,1786.5,1785.8,5.59971]
[1743772206366,12.899293,1786.5,1786.1,11.19728]
[1743772206807,12.899293,1786.5,1786.2,5.59843]
[1743772206996,5.59785,1786.4,1786.1,5.59864]
[1743772207176,5.59786,1786.4,1786.1,5.59864]
[1743772207513,11.19589,1786.4,1786.0,5.59898]
[1743772207701,1.119589,1786.3,1786.0,11.19798]
[1743772207904,5.59828,1786.3,1786.0,5.59898]
[1743772208409,11.19593,1786.4,1786.0,5.59895]
[1743772208568,5.59834,1786.3,1785.9,5.59935]
[1743772208784,6.43137,1786.2,1785.8,5.59967]
[1743772208990,12.03008,1786.2,1785.8,5.59967]
[1743772209228,1.203008,1786.1,1785.9,5.59923]
[1743772209410,0.8329,1786.2,1785.9,5.59923]
[1743772209736,6.43143,1786.2,1785.9,5.59923]
[1743772210032,5.59889,1786.1,1785.7,5.6]
[1743772210320,5.59889,1786.1,1785.7,11.19989]
[1743772210625,5.59889,1786.1,1785.8,5.59966]
[1743772210791,5.59889,1786.1,1785.8,5.59959]
[1743772210792,6.801861,1786.1,1785.8,5.59959]
[1743772211711,1.203031,1786.1,1785.8,5.59945]
[1743772212042,12.45725764,1786.2,1785.8,5.59945]
[1743772212207,5.59887,1786.1,1785.8,5.59945]
[1743772212902,5.59887,1786.1,1785.7,5.59998]
[1743772213226,5.59972,1785.9,1785.5,5.60056]
[1743772213430,6.05999,1786.1,1785.3,11.20244]
[1743772213431,5.60009,1785.7,1785.3,11.20244]
[1743772213632,5.60044,1785.6,1785.3,5.60118]
[1743772213936,5.60067,1785.5,1785.2,5.60156]
[1743772214238,5.60067,1785.5,1785.1,11.25363]
[1743772214441,11.20156,1785.5,1785.1,5.65179]
[1743772214619,12.321716,1785.5,1785.1,5.65179]
[1743772214821,5.60155,1785.3,1785.1,0.05]
[1743772215017,5.60161,1785.2,1785.1,0.05]
[1743772215431,9.37151,1785.2,1785.1,0.05]
[1743772215711,3.7699,1785.2,1785.1,0.05]
[1743772215905,11.026784,1785.2,1785.1,0.05]
[1743772216755,5.60352,1784.6,1784.2,5.6046]
[1743772216950,5.60352,1784.6,1784.1,5.65506]
[1743772216951,5.60431,1784.4,1784.1,0.05]
[1743772217455,5.60418,1784.4,1784.1,0.05]
[1743772217620,5.60418,1784.4,1784.1,5.65505]
[1743772217820,5.60418,1784.4,1784.1,0.05]
[1743772218019,5.60445,1784.3,1784.1,0.05]
[1743772218948,0.73519386,1784.3,1784.1,0.05]
[1743772219256,6.33976386,1784.3,1784.1,0.05]
[1743772219761,5.60475,1784.2,1784.1,0.05]
[1743772219970,2.22958225,1784.3,1784.1,0.05]
[1743772220263,6.01952402,1784.2,1784.1,0.05]
[1743772220468,12.81499,1784.5,1784.1,0.05]
[1743772220763,6.05999,1784.5,1784.3,5.60424]
[1743772221055,6.05999,1784.5,1784.3,5.60431]
[1743772221255,12.3579,1784.8,1784.2,5.60475]
[1743772221256,6.755,1784.8,1784.2,5.60475]
[1743772221458,18.37438178,1784.8,1784.4,5.60412]
[1743772221762,5.60322,1784.7,1784.4,5.60412]
[1743772221964,12.77124178,1784.8,1784.4,5.60395]
[1743772222437,18.37432178,1784.8,1784.4,5.60395]
[1743772222622,5.60324,1784.7,1784.4,5.60395]
[1743772222820,5.60324,1784.7,1784.3,6.164905]
[1743772223022,5.60324,1784.7,1784.3,6.164785]
[1743772223252,5.60324,1784.7,1784.4,6.2205785]
[1743772223464,5.60324,1784.7,1784.4,0.6164785]
[1743772223761,18.37431178,1784.8,1784.4,6.2205185]
[1743772223960,12.77124178,1784.8,1784.4,6.2205185]
[1743772224372,0.41326178,1784.8,1784.6,5.60338]
[1743772224540,19.22331,1785.2,1784.8,5.60272]
[1743772224744,5.60209,1785.1,1784.7,5.60306]
[1743772224960,5.60264,1784.9,1784.6,1.120699]
[1743772225167,5.60303,1784.8,1784.4,6.2204985]
[1743772225461,11.2054,1784.9,1784.5,6.28165144]
[1743772225639,5.6029,1784.8,1784.5,0.62204985]
[1743772225845,5.60317,1784.8,1784.4,6.2205585]
[1743772226051,5.6033,1784.7,1784.4,0.6164785]
[1743772226426,5.6023,1785.0,1784.4,0.67251163]
[1743772226739,5.60229,1785.0,1784.7,5.60303]
[1743772226937,12.35597,1785.1,1784.5,5.6037]
[1743772226938,5.60259,1784.9,1784.5,5.6037]
[1743772227153,11.20535,1784.9,1784.5,5.6037]
[1743772227354,5.60295,1784.8,1784.5,5.6037]
[1743772227652,6.0294462,1785.0,1784.2,5.60444]
[1743772227829,6.0294462,1785.0,1784.6,5.60326]
[1743772228229,5.60257,1784.9,1784.5,5.60379]
[1743772228455,5.60288,1784.8,1784.5,5.60379]
[1743772228851,5.60257,1784.9,1784.5,11.20744]
[1743772229036,11.2053,1784.9,1784.5,5.60365]
[1743772229251,5.6031,1784.8,1784.4,5.60411]
[1743772229562,5.60318,1784.7,1784.3,5.60441]
[1743772229766,5.60318,1784.7,1784.3,11.20867]
[1743772229946,11.20656,1784.7,1784.3,5.60426]
[1743772230466,5.60318,1784.7,1784.3,11.20852]
[1743772230967,6.4196,1784.9,1784.5,5.60365]
[1743772231469,0.19407992,1784.8,1784.7,5.60303]
[1743772231870,6.83719,1785.2,1784.9,5.60229]
[1743772232032,0.1640611,1784.8,1784.7,5.60316]
[1743772232377,5.60132,1785.3,1784.9,11.20502]
[1743772232668,16.201154,1785.3,1784.9,11.20502]
[1743772232872,16.201154,1785.3,1784.9,5.60251]
[1743772233057,5.60166,1785.2,1784.9,5.60251]
[1743772233431,44.38234,1785.4,1785.1,5.60168]
[1743772233627,50.40962087,1785.4,1785.0,5.60214]
[1743772233884,5.60137,1785.3,1784.9,11.20476]
[1743772234191,50.14919296,1785.4,1785.0,5.60206]
[1743772234484,5.60166,1785.2,1784.7,5.60305]
[1743772234685,5.60196,1785.1,1784.7,5.60305]
[1743772234887,11.20408,1785.1,1784.7,5.60305]
[1743772235184,5.60233,1785.0,1784.7,5.60305]
[1743772235492,5.60196,1785.1,1784.7,5.60301]
[1743772235790,5.60227,1785.0,1784.7,5.60301]
[1743772235953,11.20408,1785.1,1784.7,5.60301]
[1743772236283,5.60224,1785.0,1784.7,5.60301]
[1743772237793,11.20543,1784.9,1784.5,5.60371]
[1743772237973,0.8058,1785.0,1784.4,5.60406]
[1743772237974,5.60318,1784.7,1784.4,5.60406]
[1743772238355,0.16449604,1784.6,1784.4,11.20802]
[1743772238558,5.60287,1784.8,1784.5,5.60381]
[1743772238753,0.16508621,1784.7,1784.5,5.60381]
[1743772238949,0.16508621,1784.7,1784.6,5.60349]
[1743772239153,6.01628436,1784.9,1784.6,5.60349]
[1743772239355,0.16354364,1784.8,1784.5,5.60367]
[1743772239582,5.60293,1784.8,1784.4,5.60408]
[1743772239776,11.37060314,1784.7,1784.3,5.60431]
[1743772239963,5.6035,1784.6,1784.2,5.60461]
[1743772240170,5.76791459,1784.5,1784.2,5.60461]
[1743772240375,0.16399459,1784.5,1784.2,5.60459]
[1743772240896,5.76789459,1784.5,1784.2,5.60459]
[1743772241688,0.16399459,1784.5,1784.2,11.20924]
[1743772241858,0.16399459,1784.5,1784.3,5.60442]
[1743772242276,0.16399459,1784.5,1784.3,5.60441]
[1743772242600,0.16399459,1784.5,1784.2,5.60459]
[1743772242954,0.16399459,1784.5,1784.2,11.20924]
[1743772243460,5.76782459,1784.5,1784.2,5.60459]
[1743772243985,0.16399459,1784.5,1784.2,5.60459]
[1743772244194,0.16399459,1784.5,1784.3,5.60442]
[1743772244904,0.16399459,1784.5,1784.2,11.20938]
[1743772245119,0.16399459,1784.5,1784.3,5.60443]
[1743772245311,0.16399459,1784.5,1784.4,5.66015742]
[1743772245604,17.95097,1784.8,1784.4,11.26427742]
[1743772245903,0.16308969,1784.7,1784.5,5.6038]
[1743772246269,0.16308969,1784.7,1784.4,5.60397]
[1743772246490,0.16308969,1784.7,1784.4,11.20797]
[1743772246823,0.16308969,1784.7,1784.5,5.60366]
[1743772247029,0.16308969,1784.7,1784.4,5.66002457]
[1743772247327,0.16308969,1784.7,1784.5,5.60375]
[1743772247537,0.16308969,1784.7,1784.4,5.60399]
[1743772247695,7.01743766,1784.7,1784.3,0.51800819]
[1743772248020,5.60384,1784.5,1784.3,0.51800819]
[1743772248223,0.16265177,1784.4,1784.2,0.51800819]
[1743772248409,5.60443,1784.3,1784.2,0.51800819]
[1743772248738,0.1621208,1784.3,1784.1,0.05]
[1743772248936,11.2088,1784.4,1784.1,0.05]
[1743772249136,0.1621208,1784.3,1784.1,5.65505]
[1743772249428,3.7582,1784.5,1784.2,5.60466]
[1743772249615,0.16288889,1784.4,1784.2,5.60463]
[1743772249826,0.16288889,1784.4,1784.1,11.77800819]
[1743772249988,0.16288889,1784.4,1784.1,11.26]
[1743772250191,0.16288889,1784.4,1784.2,5.60457]
[1743772250392,5.76705889,1784.4,1784.1,5.65494]
[1743772250636,0.16288889,1784.4,1784.1,5.65494]
[1743772250807,0.16288889,1784.4,1784.1,0.66729482]
[1743772251012,0.16288889,1784.4,1784.1,5.65501]
[1743772251232,0.16288889,1784.4,1784.2,6.12264819]
[1743772251399,0.16288889,1784.4,1784.2,11.72728819]
[1743772251599,0.16288889,1784.4,1784.3,5.60443]
[1743772252100,6.05999,1784.6,1784.4,5.60398]
[1743772252793,6.05999,1784.6,1784.3,11.72675819]
[1743772253099,0.16182218,1784.5,1784.3,5.6043]
[1743772253294,0.16182218,1784.5,1784.4,5.60401]
[1743772253533,0.16182218,1784.5,1784.3,5.6043]
[1743772253733,0.16182218,1784.5,1784.4,5.60412]
[1743772254325,0.16182218,1784.5,1784.3,5.6043]
[1743772254509,0.16182218,1784.5,1784.3,11.72662819]
[1743772254710,0.16182218,1784.5,1784.3,11.20862]
[1743772255252,0.16182218,1784.5,1784.4,5.60412]
[1743772255553,6.39617,1784.7,1784.4,5.60412]
[1743772255762,0.16261088,1784.6,1784.4,5.60412]
[1743772255958,6.84369,1785.0,1784.8,5.60282]
[1743772256107,0.150726,1784.9,1784.8,5.60256]
[1743772256308,0.150726,1784.9,1784.7,11.20606]
[1743772256544,6.87339,1785.3,1784.8,5.65888086]
[1743772256742,0.15263869,1785.2,1785.1,5.6018]
[1743772257257,0.15263869,1785.2,1785.1,5.65781447]
[1743772257610,5.59976,1785.8,1785.4,5.60067]
[1743772257813,5.75482305,1785.7,1785.3,5.60118]
[1743772258011,6.89028135,1785.7,1785.3,11.20232]
[1743772258351,6.89022135,1785.7,1785.4,5.60096]
[1743772258551,1.29007135,1785.7,1785.4,11.25763313]
[1743772258848,0.15461305,1785.7,1785.5,5.60056]
[1743772259046,5.75465305,1785.7,1785.4,5.60081]
[1743772259258,0.15461305,1785.7,1785.4,11.20163]
[1743772259622,0.15461305,1785.7,1785.4,5.60081]
[1743772259818,5.75476305,1785.7,1785.3,5.60115]
[1743772260012,5.75476305,1785.7,1785.3,11.20234]
[1743772260220,0.73008936,1785.7,1785.4,5.60073]
[1743772260443,0.15461305,1785.7,1785.5,5.6006]
[1743772260660,5.60024,1785.7,1785.3,5.60111]
[1743772260947,0.156434,1785.6,1785.3,11.20227]
[1743772261153,5.60052,1785.6,1785.2,5.6016]
[1743772261317,0.14282193,1785.5,1785.2,11.20307]
[1743772261528,0.14282193,1785.5,1785.2,5.60147]
[1743772261732,0.8178,1785.4,1785.1,5.60187]
[1743772261957,11.91881612,1785.5,1785.0,6.12020819]
[1743772261958,0.14453649,1785.3,1785.0,0.51800819]
[1743772262159,6.41803,1785.7,1785.3,5.60125]
[1743772262365,0.8178,1785.7,1785.4,0.05600718]
[1743772262584,0.8178,1785.7,1785.4,5.60081]
[1743772262926,0.8178,1785.7,1785.4,11.20164]
[1743772263356,0.8178,1785.7,1785.3,5.60116]
[1743772263665,0.8331,1785.9,1785.4,0.0560034]
[1743772263835,6.43267,1785.9,1785.5,5.60048]
[1743772264067,11.1997,1785.8,1785.4,5.60096]
[1743772264251,5.59979,1785.8,1785.4,11.20168]
[1743772264448,6.43254,1785.9,1785.5,5.60065]
[1743772265084,6.43254,1785.9,1785.5,5.60052]
[1743772265347,0.41522011,1786.0,1785.7,5.59993]
[1743772265549,31.58133,1786.1,1785.8,5.59971]
[1743772265750,0.7775,1786.1,1785.7,5.60002]
[1743772266047,12.33022,1786.3,1785.9,5.59924]
[1743772266262,5.59873,1786.2,1785.7,5.59998]
[1743772266484,5.59963,1785.9,1785.5,6.11663404]
[1743772266686,5.59977,1785.8,1785.4,5.60097]
[1743772266888,5.59942,1785.9,1785.5,5.6005]
[1743772267047,1.248941,1785.9,1785.5,0.05600331]
[1743772267243,6.848511,1785.9,1785.5,5.60066]
[1743772267447,5.5998,1785.8,1785.4,5.60097]
[1743772267699,6.43215,1785.7,1785.4,5.60097]
[1743772268053,0.8321,1785.7,1785.4,5.65679339]
[1743772268288,0.14630038,1785.6,1785.3,5.60127]
[1743772268487,0.14630038,1785.6,1785.3,5.6011]
[1743772268784,0.14455672,1785.5,1785.3,5.6011]
[1743772269009,5.60015,1785.7,1785.3,5.60119]
[1743772269235,0.14541271,1785.6,1785.5,5.60058]
[1743772269380,12.32975,1785.8,1785.4,5.6008]
[1743772269576,0.14470253,1785.6,1785.4,5.6008]
[1743772269814,17.92973,1785.8,1785.4,5.6008]
[1743772269999,0.14600216,1785.7,1785.4,5.6008]
[1743772270318,6.39238,1785.6,1785.2,5.60159]
[1743772270612,5.60103,1785.4,1785.0,5.60197]
[1743772270806,0.14488832,1785.3,1785.0,5.60197]
[1743772271015,0.7918,1785.6,1785.2,5.60139]
[1743772271016,6.3922,1785.6,1785.2,5.60139]
[1743772271177,0.14428655,1785.5,1785.2,5.60139]
[1743772271377,0.14428655,1785.5,1785.2,11.20287]
[1743772271609,0.14428655,1785.5,1785.2,5.60139]
[1743772271922,6.81658407,1785.5,1785.1,5.65775151]
[1743772272211,0.14428655,1785.5,1785.2,0.05601385]
[1743772272425,0.14428655,1785.5,1785.4,5.60098]
[1743772272573,0.14428655,1785.5,1785.4,5.65698573]
[1743772272775,5.60014,1785.7,1785.4,5.60098]
[1743772273002,0.14333346,1785.6,1785.4,5.65698241]
[1743772273211,13.0915,1785.8,1785.4,5.65684244]
[1743772273383,13.0915,1785.8,1785.5,11.20104]
[1743772273384,0.14347925,1785.7,1785.5,11.20104]
[1743772273590,0.14347925,1785.7,1785.4,5.60094]
[1743772273785,0.14347925,1785.7,1785.4,5.65683241]
[1743772273987,5.74354925,1785.7,1785.3,5.60125]
[1743772274191,11.77539492,1785.6,1785.2,5.6016]
[1743772274380,0.14318758,1785.5,1785.2,5.60145]
[1743772274579,0.14318758,1785.5,1785.2,5.65745742]
[1743772275008,0.14318758,1785.5,1785.3,5.60115]
[1743772275180,5.60039,1785.6,1785.2,5.60145]
[1743772275379,0.14309879,1785.5,1785.2,11.20296]
[1743772275575,0.14309879,1785.5,1785.3,5.60118]
[1743772275810,0.14309879,1785.5,1785.2,6.721746]
[1743772275811,5.60056,1785.6,1785.2,1.120296]
[1743772276125,5.60135,1785.3,1784.9,5.60245]
[1743772276478,0.14316911,1785.2,1784.9,5.60245]
[1743772276683,0.14316911,1785.2,1784.9,11.20483]
[1743772277023,0.1434422,1785.1,1784.9,5.60238]
[1743772277190,11.20286,1785.3,1784.9,6.722899]
[1743772277391,5.74586321,1785.2,1784.8,5.60281]
[1743772277594,6.43185,1785.0,1784.6,11.20682]
[1743772277795,0.14221813,1784.9,1784.6,5.60334]
[1743772278119,0.14221813,1784.9,1784.6,0.05602559]
[1743772278319,0.14221813,1784.9,1784.8,5.60286]
[1743772278499,0.14221813,1784.9,1784.8,6.77947158]
[1743772278696,6.43113,1785.2,1784.9,5.60252]
[1743772279111,5.60193,1785.1,1784.8,6.72345]
[1743772279639,5.60193,1785.1,1784.8,5.60286]
[1743772279832,6.43113,1785.2,1784.8,11.20557]
[1743772280050,3.8121,1785.4,1785.1,5.60192]
[1743772280336,5.6021,1785.1,1784.7,11.20624]
[1743772280510,6.4145,1785.0,1784.6,5.6034]
[1743772280707,12.01696,1785.0,1784.6,5.6034]
[1743772281232,5.60325,1784.7,1784.5,0.51750782]
[1743772281435,6.41895,1784.7,1784.5,0.51750782]
[1743772281637,5.60448,1784.3,1784.1,0.05]
[1743772282341,5.60417,1784.4,1784.1,0.05]
[1743772282540,7.5387,1784.5,1784.1,5.65504]
[1743772282693,3.8223,1784.7,1784.4,5.60412]
[1743772282894,3.8223,1784.7,1784.4,11.2081]
[1743772283108,0.8223,1784.7,1784.5,5.60379]
[1743772283423,0.13593983,1784.6,1784.5,5.60379]
[1743772283619,0.8223,1784.7,1784.5,5.60379]
[1743772283807,0.13584082,1784.6,1784.5,5.60367]
[1743772284008,0.8223,1784.7,1784.5,1.120787]
[1743772284215,0.13592966,1784.6,1784.4,5.60408]
[1743772284444,0.8223,1784.7,1784.4,11.20805]
[1743772284640,0.13624542,1784.6,1784.5,5.65967186]
[1743772284848,6.37703,1784.9,1784.5,5.60364]
[1743772285153,5.60318,1784.7,1784.3,5.60442]
[1743772285319,5.60353,1784.6,1784.3,5.60428]
[1743772285647,0.8092,1784.5,1784.2,6.170204]
[1743772285936,0.13528521,1784.4,1784.2,6.170094]
[1743772286146,0.13528521,1784.4,1784.3,5.66046742]
[1743772286341,0.13528521,1784.4,1784.3,7.40398456]
[1743772286643,11.20596,1784.8,1784.4,5.60402]
[1743772286944,0.816,1784.9,1784.5,0.05603214]
[1743772287118,0.816,1784.9,1784.6,5.60335]
[1743772287315,0.8243,1785.1,1784.8,5.60276]
[1743772287741,6.42636,1785.1,1784.7,5.60312]
[1743772288053,5.60225,1785.0,1784.7,5.60312]
[1743772288243,5.60225,1785.0,1784.7,6.723775]
[1743772288407,6.42636,1785.1,1784.7,12.326815]
[1743772288606,6.42636,1785.1,1784.3,10.41540199]
[1743772288607,5.60256,1784.9,1784.6,5.60346]
[1743772289236,5.60256,1784.9,1784.6,5.65948743]
[1743772289442,5.60256,1784.9,1784.6,5.60346]
[1743772289714,5.60256,1784.9,1784.6,5.65948743]
[1743772289950,5.60256,1784.9,1784.6,5.60346]
[1743772290283,5.60256,1784.9,1784.5,5.60374]
[1743772290549,5.60256,1784.9,1784.5,11.767764]
[1743772291153,9.84185494,1785.1,1784.7,5.60302]
[1743772291445,6.42629,1785.1,1784.7,5.60295]
[1743772291652,0.8243,1785.1,1784.7,5.60295]
[1743772291950,0.8243,1785.1,1784.9,5.60241]
[1743772292153,5.60176,1785.2,1784.9,1.12612008]
[1743772292309,5.60161,1785.2,1784.7,5.60306]
[1743772292513,5.6029,1784.8,1784.5,0.51705861]
[1743772292762,11.20606,1784.8,1784.5,0.51705861]
[1743772292953,11.20606,1784.8,1784.4,5.60401]
[1743772293457,5.60264,1784.9,1784.5,5.60367]
[1743772293618,5.60297,1784.8,1784.5,5.60367]
[1743772294085,5.60297,1784.8,1784.4,5.60405]
[1743772294245,5.6032,1784.7,1784.4,5.60405]
[1743772294885,5.60297,1784.8,1784.5,0.05603157]
[1743772295178,6.79958,1784.9,1784.5,5.65979117]
[1743772295382,0.7648,1785.0,1784.5,5.65977117]
[1743772295558,11.96958,1785.0,1784.6,5.60346]
[1743772295751,6.3671,1785.0,1784.7,5.60317]
[1743772295984,11.96958,1785.0,1784.6,5.60336]
[1743772296189,0.7648,1785.0,1784.9,5.60255]
[1743772296345,24.80772,1785.2,1784.8,5.60263]
[1743772296681,5.60235,1785.0,1784.6,11.20686]
[1743772296845,5.60265,1784.9,1784.6,5.60343]
[1743772297047,11.20488,1785.0,1784.6,5.60343]
[1743772297260,11.20485,1785.0,1784.6,5.60335]
[1743772297801,5.602,1785.1,1784.7,11.26215642]
[1743772297986,0.8282,1785.2,1784.8,5.60262]
[1743772298184,0.13757749,1785.1,1784.8,11.20537]
[1743772298483,12.03174,1785.2,1784.8,5.60262]
[1743772298686,0.13746678,1785.0,1784.8,5.60262]
[1743772298842,12.03174,1785.2,1784.8,5.60262]
[1743772299060,0.13796807,1785.1,1784.8,5.60262]
[1743772299264,12.03174,1785.2,1784.8,5.60262]
[1743772299464,12.03174,1785.2,1784.7,5.60307]
[1743772299465,5.74004807,1785.1,1784.7,5.60307]
[1743772299765,5.60288,1784.8,1784.6,0.51812742]
[1743772299966,0.1380681,1784.7,1784.4,11.72615742]
[1743772300166,0.1380681,1784.7,1784.4,5.60398]
[1743772300487,5.7412781,1784.7,1784.5,0.05603147]
[1743772300691,5.7412781,1784.7,1784.3,6.12245742]
[1743772301001,5.7412781,1784.7,1784.3,6.27312614]
[1743772301207,11.3446681,1784.7,1784.3,6.27312614]
[1743772301502,6.38457,1784.6,1784.2,11.72739742]
[1743772301703,6.38457,1784.6,1784.2,11.20927]
[1743772301872,6.38457,1784.6,1784.1,5.65497]
[1743772301873,5.74102528,1784.5,1784.1,5.65497]
[1743772302069,11.34503528,1784.5,1784.1,5.65497]
[1743772302270,11.34502528,1784.5,1784.1,5.65492]
[1743772302607,0.819,1784.2,1784.1,0.05]
[1743772302802,0.13560076,1784.2,1784.1,5.65484]
[1743772302967,0.819,1784.4,1784.1,5.65484]
[1743772303170,0.13571163,1784.3,1784.1,11.31582181]
[1743772303383,0.819,1784.4,1784.2,0.05604183]
[1743772303590,0.819,1784.4,1784.1,5.65484]
[1743772303776,0.13571163,1784.3,1784.1,5.65484]
[1743772303959,6.42325,1784.4,1784.1,0.05]
[1743772304162,0.13571163,1784.3,1784.1,0.05]
[1743772304360,0.819,1784.4,1784.1,5.65505]
[1743772304599,0.13571163,1784.3,1784.1,5.71109182]
[1743772304899,0.819,1784.4,1784.1,5.65505]
[1743772305203,0.13540072,1784.3,1784.1,5.65505]
[1743772305378,0.819,1784.4,1784.2,0.05604186]
[1743772305583,0.13540072,1784.3,1784.2,0.05604186]
[1743772305907,0.819,1784.4,1784.1,5.65505]
[1743772306068,0.13540072,1784.3,1784.1,5.65505]
[1743772306270,6.42313,1784.4,1784.1,5.65505]
[1743772306501,0.819,1784.4,1784.2,0.05604182]
[1743772306682,0.13540072,1784.3,1784.2,5.66067182]
[1743772306883,5.60382,1784.5,1784.2,0.05604182]
[1743772307068,0.13540072,1784.3,1784.2,5.66075182]
[1743772307264,6.36434,1784.6,1784.2,1.187607]
[1743772307265,0.7608,1784.6,1784.2,1.187607]
[1743772307469,5.74004598,1784.5,1784.2,5.66072182]
[1743772307704,11.34409598,1784.5,1784.1,5.65503]
[1743772308008,0.13622598,1784.5,1784.2,11.20932]
[1743772308181,0.13622598,1784.5,1784.2,5.6046]
[1743772308501,5.74005598,1784.5,1784.1,6.17397942]
[1743772308702,12.55447458,1784.5,1784.1,6.17397942]
[1743772309098,5.60415,1784.4,1784.1,0.05]
[1743772309296,5.60475,1784.2,1784.1,0.05]
[1743772309725,5.73890803,1784.2,1784.1,0.05]
[1743772310428,0.13415803,1784.2,1784.1,0.05]
[1743772310728,5.73890803,1784.2,1784.1,0.05]
[1743772311396,7.66301972,1784.2,1784.1,0.05]
[1743772311832,2.05826972,1784.2,1784.1,0.05]
[1743772312134,0.13415803,1784.2,1784.1,0.05]
[1743772315541,0.13415803,1784.2,1784.1,5.7111056]
[1743772315869,23.97355,1784.7,1784.3,5.60429]
[1743772316032,5.73488686,1784.6,1784.3,5.60429]
[1743772316375,5.73488686,1784.6,1784.2,5.60472]
[1743772316570,5.73488686,1784.6,1784.2,6.78251494]
[1743772316758,0.13137686,1784.6,1784.3,5.66017805]
[1743772316927,0.13137686,1784.6,1784.5,5.60381]
[1743772317130,0.8326,1784.8,1784.5,11.26365119]
[1743772317334,0.8326,1784.8,1784.5,11.20762]
[1743772317335,0.13239827,1784.6,1784.5,11.20762]
[1743772317559,6.706,1784.9,1784.6,5.60346]
[1743772317751,12.30867,1784.9,1784.5,12.328272]
[1743772317959,6.706,1784.9,1784.6,5.60345]
[1743772318364,12.30867,1784.9,1784.5,6.724522]
[1743772318566,12.30867,1784.9,1784.5,12.84750161]
[1743772318771,12.30867,1784.9,1784.6,5.60349]
[1743772319231,12.30867,1784.9,1784.5,12.328082]
[1743772319431,12.30867,1784.9,1784.5,6.724422]
[1743772319675,6.706,1784.9,1784.6,5.60342]
[1743772319875,12.30856,1784.9,1784.6,5.60342]
[1743772320389,12.30856,1784.9,1784.5,1.120762]